bitfinex/quotes_SOLUSD_20250301
["timestamp","ask_amount","ask_price","bid_price","bid_amount"]
[1740868408909,6.6609,142.44,142.4,54.3526]
[1740868409111,18.64964886,142.43,142.38,55.6826]
[1740868413036,18.64964886,142.43,142.38,54.3826]
[1740868414514,18.64964886,142.43,142.38,61.4059]
[1740868415335,18.64964886,142.43,142.38,54.3826]
[1740868415538,18.64964886,142.43,142.38,61.4059]
[1740868425029,18.64964886,142.41,142.38,61.4059]
[1740868425438,18.64964886,142.41,142.38,0.03]
[1740868426622,25.67164886,142.41,142.38,0.03]
[1740868437950,25.67254886,142.39,142.38,0.03]
[1740868438149,27.25344886,142.39,142.38,0.03]
[1740868438448,110.25344886,142.39,142.38,0.03]
[1740868438630,110.25344886,142.39,142.37,0.03]
[1740868438828,25.04964886,142.38,142.37,0.03]
[1740868440153,32.07304886,142.38,142.37,0.03]
[1740868441353,25.04964886,142.38,142.37,0.03]
[1740868441550,18.64964886,142.38,142.37,0.03]
[1740868444547,25.67304886,142.38,142.37,0.03]
[1740868448133,25.67404886,142.36,142.35,0.03]
[1740868450083,18.64964886,142.33,142.31,0.03]
[1740868450245,25.67594886,142.33,142.31,0.03]
[1740868452246,103.64964886,142.32,142.31,0.03]
[1740868452446,111.62374886,142.32,142.31,0.03]
[1740868452660,25.21974886,142.31,142.28,1.0930224]
[1740868453359,32.24704886,142.31,142.28,1.0930224]
[1740868453564,20.64964886,142.29,142.28,1.0930224]
[1740868453876,22.64964886,142.29,142.28,1.0930224]
[1740868454777,40.64964886,142.28,142.27,0.03]
[1740868455075,123.64964886,142.28,142.27,0.03]
[1740868455449,128.67794886,142.28,142.27,0.03]
[1740868456171,130.67794886,142.28,142.27,0.03]
[1740868456473,132.67794886,142.28,142.27,0.03]
[1740868456656,18.64964886,142.27,142.24,0.03]
[1740868456856,18.64964886,142.25,142.24,0.03]
[1740868457660,117.24954886,142.25,142.24,0.03]
[1740868457868,119.24954886,142.25,142.24,0.03]
[1740868458069,36.24954886,142.25,142.24,0.03]
[1740868458265,22.64964886,142.24,142.22,0.03]
[1740868458655,20.64964886,142.23,142.22,0.03]
[1740868458851,22.64964886,142.23,142.22,0.03]
[1740868459550,18.64964886,142.2,142.13,24.6253]
[1740868460963,25.68194886,142.2,142.13,24.6253]
[1740868461370,18.64964886,142.2,142.13,7.0358]
[1740868461745,25.68204886,142.2,142.13,7.0358]
[1740868462362,18.64964886,142.18,142.13,7.0358]
[1740868462771,25.68334886,142.18,142.13,7.0358]
[1740868463953,25.68334886,142.18,142.08,45.20100049]
[1740868463954,18.64964886,142.14,142.08,7.0382]
[1740868464166,101.64964886,142.14,142.08,7.0382]
[1740868464957,101.64964886,142.14,142.11,20.0]
[1740868465273,18.64964886,142.14,142.11,20.0]
[1740868466872,18.64964886,142.14,142.1,7.0368]
[1740868467786,18.64964886,142.14,142.09,7.0376]
[1740868469578,25.68494886,142.14,142.09,7.0376]
[1740868470361,25.68494886,142.14,142.1,0.03]
[1740868478187,25.68494886,142.14,142.08,53.8826]
[1740868481488,32.18944886,142.14,142.08,53.8826]
[1740868481667,49.77764886,142.14,142.08,53.8826]
[1740868481866,49.77764886,142.14,142.07,0.8963027]
[1740868481867,18.64964886,142.12,142.07,0.8963027]
[1740868482886,18.64964886,142.12,142.08,0.03]
[1740868483390,18.64964886,142.1,142.08,0.03]
[1740868484295,25.68614886,142.12,142.08,0.03]
[1740868485191,18.64964886,142.12,142.08,0.03]
[1740868485895,6.5045,142.14,142.08,53.9126]
[1740868486076,18.64964886,142.13,142.08,53.9126]
[1740868487698,18.64964886,142.13,142.09,7.0377]
[1740868489202,18.64964886,142.13,142.08,0.03]
[1740868489404,6.42,142.12,142.08,0.03]
[1740868489701,48.61964886,142.08,142.07,0.8963027]
[1740868490578,48.61964886,142.08,142.03,7.0403]
[1740868490579,29.1036973,142.07,142.03,7.0403]
[1740868490779,29.1036973,142.07,142.03,60.9229]
[1740868491803,18.64964886,142.08,142.03,30.9229]
[1740868493279,18.64964886,142.08,142.03,37.9633]
[1740868494889,18.64964886,142.08,142.03,58.84336054]
[1740868495095,89.42,142.12,142.06,20.88006054]
[1740868495301,6.5045,142.14,142.06,51.80296054]
[1740868495302,13.5402,142.14,142.06,51.80296054]
[1740868495487,18.71264886,142.13,142.07,20.88006054]
[1740868495807,18.71264886,142.13,142.08,20.88006054]
[1740868496006,0.063,142.13,142.07,20.88006054]
[1740868496207,0.063,142.13,142.07,51.80296054]
[1740868496503,0.063,142.13,142.08,7.0382]
[1740868498686,18.71264886,142.13,142.07,30.9229]
[1740868499390,18.71264886,142.13,142.06,7.039]
[1740868500090,18.71264886,142.13,142.05,37.9622]
[1740868500406,7.0363,142.12,142.05,37.9622]
[1740868500698,7.0988,142.13,142.06,20.88006054]
[1740868500901,0.063,142.13,142.09,20.88006054]
[1740868501085,0.063,142.13,142.11,20.88006054]
[1740868501490,0.063,142.13,142.11,51.80296054]
[1740868501786,0.063,142.13,142.12,20.88006054]
[1740868501993,0.063,142.13,142.12,51.80296054]
[1740868502300,0.063,142.13,142.12,30.9229]
[1740868502491,0.063,142.13,142.12,37.9592]
[1740868502801,0.063,142.13,142.12,58.83926054]
[1740868506200,0.0001,142.13,142.12,58.83926054]
[1740868510117,7.7945,142.22,142.15,20.0]
[1740868510301,7.7945,142.22,142.2,20.0]
[1740868510607,7.7945,142.22,142.21,20.0]
[1740868511004,1.7175,142.22,142.21,20.0]
[1740868511305,0.063,142.22,142.21,50.9229]
[1740868511611,0.063,142.22,142.21,57.9547]
[1740868512720,0.063,142.22,142.21,50.9229]
[1740868516202,0.063,142.22,142.21,30.9229]
[1740868522522,0.063,142.22,142.21,37.9547]
[1740868525833,0.063,142.22,142.21,30.9229]
[1740868526015,0.063,142.22,142.21,37.9547]
[1740868536447,0.063,142.22,142.21,30.9229]
[1740868537542,0.063,142.22,142.21,37.9547]
[1740868541248,0.063,142.22,142.21,51.28869747]
[1740868543038,0.063,142.22,142.21,37.9547]
[1740868545447,0.063,142.22,142.17,10.90278337]
[1740868545448,8.2992,142.21,142.13,30.9529]
[1740868545951,18.64964886,142.2,142.13,30.9529]
[1740868546652,7.0328,142.19,142.13,30.9529]
[1740868551941,18.64964886,142.17,142.13,30.9529]
[1740868553258,18.64964886,142.17,142.13,37.9884]
[1740868555362,1.6581,142.18,142.13,37.9884]
[1740868555675,1.6581,142.18,142.14,13.33399747]
[1740868556572,1.6581,142.18,142.13,55.5779]
[1740868556748,1.6581,142.18,142.15,7.0348]
[1740868558063,1.6581,142.18,142.15,51.29169747]
[1740868558244,1.6581,142.18,142.16,13.33399747]
[1740868558445,1.6581,142.18,142.16,44.25689747]
[1740868558859,0.063,142.2,142.16,44.25689747]
[1740868559070,0.063,142.2,142.18,13.33399747]
[1740868559362,0.063,142.2,142.19,13.33399747]
[1740868559548,0.0001,142.2,142.19,44.25689747]
[1740868559965,0.0001,142.2,142.19,51.28969747]
[1740868561347,0.0001,142.2,142.19,53.28968084]
[1740868561749,0.0001,142.2,142.19,60.77863441]
[1740868563561,0.0001,142.2,142.19,37.9557]
[1740868564957,0.0001,142.2,142.19,58.77865104]
[1740868565569,0.0001,142.2,142.19,37.9557]
[1740868565870,0.0001,142.2,142.19,37.9857]
[1740868570060,0.0001,142.2,142.19,30.9529]
[1740868580979,7.774,142.2,142.14,29.2563]
[1740868581484,7.774,142.2,142.14,36.2915]
[1740868581662,18.64964886,142.19,142.14,36.2915]
[1740868584287,25.68244886,142.19,142.14,36.2915]
[1740868602091,25.74544886,142.19,142.14,36.2915]
[1740868602606,0.063,142.19,142.14,36.2915]
[1740868602787,0.063,142.19,142.14,67.22116909]
[1740868603781,0.063,142.19,142.15,13.34146909]
[1740868604099,0.063,142.19,142.16,13.34146909]
[1740868604483,0.063,142.19,142.17,7.0338]
[1740868604676,0.063,142.19,142.17,36.2901]
[1740868605384,0.063,142.19,142.17,42.6901]
[1740868607199,0.0001,142.2,142.17,42.6901]
[1740868607399,0.0001,142.2,142.19,33.34146909]
[1740868607979,0.0001,142.22,142.19,64.59776909]
[1740868608181,0.0001,142.22,142.21,13.34146909]
[1740868608590,0.0001,142.22,142.21,20.37326909]
[1740868611090,0.0001,142.22,142.21,53.62955246]
[1740868613601,0.0001,142.22,142.21,53.2075134]
[1740868614188,0.0001,142.22,142.21,58.94435997]
[1740868615709,0.0001,142.22,142.21,60.94435997]
[1740868616316,0.0001,142.22,142.21,58.94435997]
[1740868616606,0.0001,142.22,142.21,60.94435997]
[1740868620823,0.0001,142.22,142.21,62.94434334]
[1740868621605,7.7954,142.28,142.24,20.0]
[1740868621810,1.662,142.32,142.27,35.34146909]
[1740868622010,1.662,142.32,142.31,20.0]
[1740868622227,1.662,142.32,142.31,49.2563]
[1740868622826,1.662,142.32,142.31,56.2832]
[1740868625713,0.063,142.34,142.31,56.2832]
[1740868627630,0.03,142.32,142.31,56.2832]
[1740868632335,0.03,142.32,142.31,36.2832]
[1740868632643,6.0389,142.32,142.31,29.2563]
[1740868632835,7.634,142.32,142.31,29.2563]
[1740868633026,18.64964886,142.31,142.28,7.0282]
[1740868633225,18.64964886,142.31,142.27,36.285]
[1740868633434,14.6608,142.32,142.27,36.285]
[1740868633635,14.6608,142.32,142.26,7.0292]
[1740868634943,14.6608,142.32,142.25,7.0296]
[1740868635114,14.6608,142.32,142.25,36.2859]
[1740868635923,26.65854886,142.31,142.22,29.2563]
[1740868636127,18.64964886,142.29,142.22,36.2875]
[1740868636328,6.0089,142.28,142.22,36.2875]
[1740868636937,7.0288,142.27,142.22,36.2875]
[1740868637119,18.64964886,142.26,142.22,36.2875]
[1740868637526,18.64964886,142.24,142.22,29.2563]
[1740868637731,18.64964886,142.24,142.21,7.0946]
[1740868638638,18.64964886,142.24,142.21,20.063]
[1740868640845,18.64964886,142.24,142.21,27.0944]
[1740868641923,1.5951,142.25,142.21,44.674]
[1740868642122,1.5951,142.25,142.24,20.0]
[1740868642646,6.0389,142.28,142.24,20.0]
[1740868642847,6.0389,142.28,142.24,49.2563]
[1740868645043,6.0389,142.28,142.25,7.0298]
[1740868649158,18.64964886,142.27,142.24,56.2864]
[1740868649346,18.64964886,142.27,142.24,29.2563]
[1740868650251,25.67864886,142.27,142.24,29.2563]
[1740868651738,108.67864886,142.27,142.22,0.063]
[1740868652355,115.07864886,142.27,142.22,0.063]
[1740868653464,18.64964886,142.25,142.22,0.063]
[1740868655464,108.67964886,142.25,142.22,0.063]
[1740868655850,18.64964886,142.23,142.22,0.063]
[1740868659075,1.5051,142.22,142.21,0.063]
[1740868659282,26.55474886,142.22,142.21,0.063]
[1740868660366,33.58604886,142.22,142.21,0.063]
[1740868661248,18.64964886,142.19,142.16,0.03]
[1740868661469,101.64964886,142.19,142.16,0.03]
[1740868661944,1.504,142.18,142.16,0.03]
[1740868662149,25.04964886,142.17,142.16,0.03]
[1740868662648,25.04964886,142.17,142.13,0.03]
[1740868662850,18.64964886,142.15,142.13,0.03]
[1740868663363,20.64964886,142.15,142.13,0.03]
[1740868663564,18.64964886,142.15,142.13,0.03]
[1740868664759,25.68444886,142.15,142.13,0.03]
[1740868665682,26.74794886,142.14,142.13,0.03]
[1740868668487,109.74794886,142.14,142.13,0.03]
[1740868669080,18.64964886,142.14,142.13,0.03]
[1740868669457,7.9872,142.18,142.13,0.03]
[1740868669657,18.64964886,142.17,142.13,0.03]
[1740868671176,83.0,142.16,142.13,0.03]
[1740868672080,18.64964886,142.17,142.13,0.03]
[1740868672693,25.68344886,142.17,142.13,0.03]
[1740868674107,18.64964886,142.17,142.13,0.03]
[1740868674286,18.64964886,142.17,142.14,20.0]
[1740868674493,18.64964886,142.17,142.13,0.03]
[1740868675009,18.71264886,142.17,142.13,0.03]
[1740868675508,18.71264886,142.17,142.13,29.2863]
[1740868675708,0.063,142.17,142.13,29.2863]
[1740868676680,0.063,142.17,142.14,7.0353]
[1740868678902,0.063,142.17,142.13,29.2863]
[1740868679287,83.0,142.16,142.13,0.03]
[1740868679481,18.64964886,142.15,142.13,0.03]
[1740868680100,0.063,142.17,142.13,0.03]
[1740868680608,18.71264886,142.17,142.13,7.0657]
[1740868681506,18.71264886,142.17,142.13,0.03]
[1740868682408,25.74654886,142.17,142.13,0.03]
[1740868685106,43.33104886,142.17,142.13,0.03]
[1740868685404,11.786,142.14,142.13,0.03]
[1740868685602,11.786,142.14,142.07,0.063]
[1740868685603,18.64964886,142.13,142.07,0.063]
[1740868685788,18.64964886,142.11,142.07,0.063]
[1740868686706,18.64964886,142.09,142.07,0.063]
[1740868692413,25.68764886,142.09,142.07,0.063]
[1740868693396,18.64964886,142.09,142.07,0.063]
[1740868694314,25.68744886,142.09,142.07,0.063]
[1740868694507,18.64964886,142.09,142.07,0.063]
[1740868694923,25.68764886,142.09,142.07,0.063]
[1740868696432,18.64964886,142.09,142.07,0.063]
[1740868701026,18.64964886,142.09,142.07,20.063]
[1740868701216,83.0,142.14,142.1,20.0]
[1740868701417,18.64964886,142.13,142.1,20.0]
[1740868702413,201.6,142.16,142.1,20.0]
[1740868702621,18.64964886,142.15,142.11,7.0368]
[1740868703509,0.063,142.17,142.11,7.0368]
[1740868703717,0.063,142.17,142.11,67.22656909]
[1740868703925,0.063,142.17,142.12,13.34146909]
[1740868704534,0.063,142.17,142.13,7.0358]
[1740868705612,0.063,142.17,142.11,46.8483]
[1740868705813,0.063,142.17,142.12,7.0363]
[1740868710635,0.063,142.17,142.11,29.2563]
[1740868711142,18.64964886,142.15,142.11,29.2563]
[1740868711930,7.0353,142.14,142.11,29.2563]
[1740868712129,7.0353,142.14,142.09,8.6756]
[1740868712644,7.0353,142.14,142.09,7.0376]
[1740868713835,7.0353,142.14,142.07,29.3193]
[1740868713836,18.64964886,142.13,142.07,29.3193]
[1740868714034,101.64964886,142.13,142.07,0.063]
[1740868715142,18.64964886,142.11,142.07,0.063]
[1740868715951,101.64964886,142.11,142.07,0.063]
[1740868716140,48.58664886,142.07,142.06,0.063]
[1740868717032,29.937,142.06,142.04,0.03]
[1740868717232,29.937,142.06,142.04,7.0702]
[1740868717739,29.937,142.06,142.04,57.18963855]
[1740868718150,18.64964886,142.1,142.04,48.0527771]
[1740868718341,18.64964886,142.1,142.05,20.86313855]
[1740868718655,18.64964886,142.11,142.06,20.86313855]
[1740868718843,18.64964886,142.11,142.06,48.0527771]
[1740868719027,83.0,142.15,142.06,48.0527771]
[1740868719327,1.5787,142.16,142.08,20.86313855]
[1740868719525,18.64964886,142.16,142.08,20.86313855]
[1740868721551,208.063,142.17,142.13,20.86313855]
[1740868721552,0.063,142.17,142.13,20.86313855]
[1740868721725,0.063,142.17,142.13,54.4527771]
[1740868722551,0.063,142.15,142.13,54.4527771]
[1740868723328,0.063,142.15,142.14,7.0353]
[1740868724847,0.063,142.15,142.14,34.22493855]
[1740868725441,0.063,142.17,142.14,72.6762771]
[1740868726776,0.0001,142.17,142.16,22.41803855]
[1740868726935,0.0001,142.17,142.16,49.6076771]
[1740868727975,0.0001,142.17,142.16,56.6419771]
[1740868728642,0.0001,142.17,142.16,58.64196047]
[1740868732669,0.0001,142.17,142.16,60.64196047]
[1740868733275,18.64964886,142.27,142.19,20.0]
[1740868733440,18.64964886,142.27,142.19,47.18963855]
[1740868734374,18.64964886,142.27,142.2,24.6131]
[1740868735172,18.67964886,142.28,142.2,24.6131]
[1740868735368,18.67964886,142.28,142.2,45.47623855]
[1740868735686,0.063,142.27,142.21,13.32866577]
[1740868736264,0.063,142.27,142.21,40.51830432]
[1740868736684,0.063,142.27,142.22,24.6096]
[1740868736980,0.063,142.27,142.22,51.79923855]
[1740868742185,0.063,142.27,142.22,34.22093855]
[1740868746890,0.063,142.27,142.22,27.18963855]
[1740868747387,0.063,142.27,142.22,34.22093855]
[1740868747568,18.64964886,142.26,142.22,7.0313]
[1740868747780,18.64964886,142.26,142.2,7.0323]
[1740868748769,25.67914886,142.26,142.2,7.0323]
[1740868749762,25.67914886,142.26,142.19,54.22223855]
[1740868750602,43.25254886,142.26,142.19,47.18963855]
[1740868751895,18.64964886,142.24,142.18,7.033]
[1740868752094,18.64964886,142.24,142.16,44.80513855]
[1740868752095,18.64964886,142.24,142.17,7.0333]
[1740868752282,18.64964886,142.22,142.17,7.0333]
[1740868753088,25.68104886,142.22,142.17,7.0333]
[1740868756289,18.64964886,142.22,142.17,7.0333]
[1740868757288,18.64964886,142.24,142.17,20.36196577]
[1740868757489,18.64964886,142.24,142.17,7.0333]
[1740868757690,18.64964886,142.24,142.17,51.80743855]
[1740868759997,0.063,142.22,142.17,51.80743855]
[1740868763290,0.063,142.22,142.2,20.0]
[1740868765105,0.063,142.22,142.21,7.0318]
[1740868776711,0.063,142.22,142.17,27.18963855]
[1740868777007,0.063,142.22,142.18,24.6166]
[1740868779604,0.063,142.22,142.18,65.13490432]
[1740868779805,0.063,142.22,142.18,71.53490432]
[1740868780113,0.063,142.22,142.18,58.20623855]
[1740868780404,0.063,142.22,142.18,40.62293855]
[1740868781512,0.063,142.22,142.18,34.22293855]
[1740868782205,0.063,142.22,142.17,7.0336]
[1740868783116,0.063,142.22,142.16,0.03]
[1740868783294,0.063,142.22,142.16,7.0643]
[1740868784299,18.64964886,142.21,142.16,7.0643]
[1740868795516,18.71264886,142.21,142.16,7.0643]
[1740868798127,18.71264886,142.21,142.16,24.6501]
[1740868798924,18.71264886,142.21,142.16,65.16840432]
[1740868798925,0.063,142.21,142.16,65.16840432]
[1740868799120,0.063,142.21,142.17,13.32866577]
[1740868799314,0.063,142.21,142.2,20.0]
[1740868799615,0.063,142.21,142.2,47.18963855]
[1740868800123,0.063,142.21,142.2,54.22193855]
[1740868800337,0.063,142.21,142.2,34.22193855]
[1740868800627,6.5492,142.21,142.2,27.18963855]
[1740868801007,18.71264886,142.21,142.17,7.0338]
[1740868801209,0.063,142.21,142.17,7.0338]
[1740868802508,0.063,142.21,142.17,24.6183]
[1740868802711,0.063,142.21,142.19,13.32866577]
[1740868802909,0.0001,142.21,142.19,19.70866577]
[1740868803220,0.0001,142.21,142.2,13.32866577]
[1740868803417,0.0001,142.21,142.2,27.18963855]
[1740868804430,0.0001,142.22,142.2,47.55060432]
[1740868804609,0.0001,142.22,142.21,13.32866577]
[1740868806433,0.0001,142.22,142.21,20.36046577]
[1740868806634,0.0001,142.22,142.21,22.36046577]
[1740868808035,0.0001,142.22,142.21,49.55010432]
[1740868810342,0.063,142.27,142.24,20.0]
[1740868810544,0.063,142.27,142.24,47.18963855]
[1740868811721,0.063,142.27,142.25,7.0298]
[1740868814029,0.063,142.27,142.25,34.21943855]
[1740868814544,0.063,142.27,142.25,27.18963855]
[1740868819940,0.063,142.27,142.23,7.0305]
[1740868820437,0.063,142.27,142.22,27.21963855]
[1740868820633,1.549,142.24,142.22,0.03]
[1740868820860,18.64964886,142.23,142.22,0.03]
[1740868824650,1.549,142.24,142.22,0.03]
[1740868824829,6.5291,142.26,142.22,0.03]
[1740868825949,18.71264886,142.27,142.22,27.21963855]
[1740868828055,18.71264886,142.27,142.23,24.6079]
[1740868831161,0.063,142.27,142.23,65.12620432]
[1740868832147,0.063,142.27,142.24,13.32866577]
[1740868832658,0.063,142.27,142.23,51.79753855]
[1740868832870,0.063,142.27,142.23,65.12620432]
[1740868833072,0.063,142.27,142.25,7.0298]
[1740868833373,0.063,142.27,142.25,34.21943855]
[1740868835762,26.538799,142.26,142.25,34.21943855]
[1740868835961,26.538799,142.26,142.25,9.72883452]
[1740868836166,42.25681318,142.27,142.25,9.72883452]
[1740868837142,42.25681318,142.27,142.25,16.75863452]
[1740868842171,0.063,142.27,142.25,16.75863452]
[1740868854562,0.063,142.27,142.25,16.78863452]
[1740868867303,0.063,142.27,142.25,30.11730029]
[1740868867592,0.063,142.27,142.26,13.32866577]
[1740868869088,0.03,142.28,142.27,33.32866577]
[1740868869308,0.0001,142.28,142.27,40.35746577]
[1740868869624,0.0001,142.28,142.27,50.08630029]
[1740868871599,0.03,142.32,142.27,104.80290029]
[1740868871801,0.03,142.32,142.29,13.32866577]
[1740868872003,0.03,142.32,142.3,13.32866577]
[1740868872206,0.03,142.32,142.3,23.05750029]
[1740868872716,0.0001,142.32,142.31,13.32866577]
[1740868873831,0.0001,142.32,142.31,20.35556577]
[1740868874603,1.3135,142.37,142.33,20.0]
[1740868874793,1.3135,142.37,142.33,29.72883452]
[1740868876024,1.3135,142.37,142.34,7.0254]
[1740868877698,1.3135,142.37,142.34,16.75423452]
[1740868879196,1.3135,142.37,142.34,16.81723452]
[1740868879518,1.3435,142.37,142.34,16.81723452]
[1740868884314,0.03,142.37,142.36,20.0]
[1740868884503,0.03,142.37,142.36,29.72883452]
[1740868885526,0.03,142.37,142.36,36.75323452]
[1740868888805,0.063,142.38,142.36,50.08190029]
[1740868888806,0.0001,142.38,142.36,50.08190029]
[1740868889110,0.0001,142.38,142.37,13.32866577]
[1740868889902,0.0001,142.38,142.37,20.35256577]
[1740868893326,6.0713,142.42,142.37,73.03206577]
[1740868893523,0.063,142.43,142.39,13.32866577]
[1740868893716,1.5457,142.44,142.4,13.32866577]
[1740868893916,1.5457,142.44,142.4,23.05750029]
[1740868894128,1.5457,142.44,142.4,29.41750029]
[1740868894335,1.5457,142.44,142.41,24.5768]
[1740868894511,1.5457,142.46,142.41,73.01526577]
[1740868894718,1.5457,142.46,142.42,13.32866577]
[1740868894918,1.5457,142.46,142.42,23.05750029]
[1740868896219,1.5457,142.46,142.42,9.72883452]
[1740868896422,8.103,142.46,142.42,16.75003452]
[1740868896826,8.103,142.46,142.42,9.72883452]
[1740868898725,18.64964886,142.45,142.42,9.72883452]
[1740868903129,18.67964886,142.45,142.41,7.0219]
[1740868910456,0.03,142.45,142.41,7.0219]
[1740868914943,0.03,142.45,142.41,7.0849]
[1740868915152,0.03,142.45,142.41,16.81373452]
[1740868925736,0.03,142.45,142.41,30.14240029]
[1740868925936,0.03,142.45,142.41,47.69730029]
[1740868934460,0.03,142.45,142.44,20.0]
[1740868934665,0.03,142.45,142.44,9.72883452]
[1740868936660,0.03,142.47,142.44,9.72883452]
[1740868936661,0.03,142.47,142.44,33.32866577]
[1740868937461,0.03,142.47,142.42,59.6825]
[1740868937462,0.03,142.47,142.46,20.0]
[1740868938449,0.03,142.47,142.45,20.0]
[1740868938651,0.03,142.47,142.46,7.0195]
[1740868938964,0.03,142.47,142.46,27.0195]
[1740868939562,0.03,142.52,142.49,20.0]
[1740868939745,0.03,142.52,142.49,102.3]
[1740868940789,0.03,142.52,142.5,7.0175]
[1740868942077,1.6618,142.5,142.45,82.3]
[1740868942287,18.64964886,142.49,142.45,82.3]
[1740868942447,18.64964886,142.49,142.43,89.3209]
[1740868944382,25.66784886,142.49,142.43,89.3209]
[1740868947183,18.64964886,142.49,142.43,89.3209]
[1740868947372,25.66774886,142.49,142.43,89.3209]
[1740868947578,18.64964886,142.49,142.43,89.3209]
[1740868947987,18.64964886,142.49,142.43,102.64956577]
[1740868948501,18.67964886,142.49,142.43,102.64956577]
[1740868948987,18.67964886,142.49,142.43,120.20196577]
[1740868949503,18.67964886,142.49,142.43,106.8733]
[1740868950511,0.03,142.49,142.43,106.8733]
[1740868950669,0.03,142.49,142.43,120.20196577]
[1740868952421,18.67964886,142.49,142.43,120.20196577]
[1740868952904,18.67964886,142.49,142.45,7.02]
[1740868953615,18.67964886,142.49,142.45,89.32]
[1740868963824,0.03,142.49,142.45,89.32]
[1740868963987,0.03,142.49,142.47,13.32866577]
[1740868964286,0.03,142.49,142.45,44.25866577]
[1740868964988,0.03,142.49,142.46,13.32866577]
[1740868965202,0.03,142.49,142.47,13.32866577]
[1740868965900,0.03,142.49,142.48,7.0185]
[1740868966101,0.03,142.49,142.48,89.3185]
[1740868967412,0.03,142.49,142.48,102.64716577]
[1740868968695,0.03,142.52,142.48,102.64716577]
[1740868968902,0.03,142.52,142.49,13.32866577]
[1740868969619,0.03,142.52,142.49,82.3]
[1740868971004,0.03,142.52,142.5,7.0175]
[1740868974519,0.03,142.52,142.5,89.3175]
[1740868979311,0.03,142.52,142.5,82.3]
[1740868980427,0.03,142.52,142.5,89.3174]
[1740868988619,0.03,142.52,142.51,13.32866577]
[1740868988827,0.03,142.52,142.51,95.62866577]
[1740868989330,0.03,142.52,142.51,102.64566577]
[1740868991839,0.03,142.52,142.51,89.317]
[1740869003231,0.063,142.53,142.51,102.64566577]
[1740869003855,0.063,142.53,142.51,89.317]
[1740869006258,0.063,142.53,142.51,102.64566577]
[1740869006433,0.0001,142.53,142.52,13.32866577]
[1740869007547,0.0001,142.53,142.52,102.64516577]
[1740869011558,0.0001,142.53,142.52,106.20962741]
[1740869020982,0.0001,142.53,142.52,106.27262741]
[1740869024178,0.0001,142.57,142.56,2.0]
[1740869024352,0.03,142.6,142.59,20.0]
[1740869024553,0.01,142.6,142.59,33.32866577]
[1740869025169,0.01,142.6,142.59,20.0]
[1740869025674,0.01,142.6,142.59,33.32866577]
[1740869026282,0.01,142.6,142.59,40.34176577]
[1740869026977,0.0001,142.61,142.59,143.29141463]
[1740869027152,0.0001,142.61,142.6,15.32866577]
[1740869027351,0.0001,142.61,142.6,33.97831463]
[1740869027686,0.0001,142.61,142.6,31.97831463]
[1740869027864,0.0001,142.61,142.6,13.32866577]
[1740869028363,0.0001,142.61,142.6,22.34124914]
[1740869028560,0.0101,142.62,142.6,125.290898]
[1740869028761,0.03,142.67,142.64,20.0]
[1740869029070,0.03,142.67,142.64,115.62866577]
[1740869030454,0.03,142.67,142.65,7.0101]
[1740869033954,0.03,142.67,142.65,89.3101]
[1740869034349,128.24147399,142.8,142.68,20.0]
[1740869034568,1.6431,142.76,142.68,115.62866577]
[1740869035780,1.6431,142.76,142.69,7.0081]
[1740869036267,1.6431,142.76,142.69,24.5285]
[1740869037476,1.6431,142.76,142.7,3.55317391]
[1740869037775,1.6431,142.76,142.7,85.85317391]
[1740869039875,1.6431,142.76,142.71,7.0072]
[1740869040570,1.6431,142.76,142.7,85.85317391]
[1740869040571,1.6431,142.76,142.7,89.3076]